[Event "Titled Tuesday Blitz March 28 Late 2023"]
[White "Kozin, Yuri"]
[Black "Araujo, Everson De Moura"]
[WhiteFideId "4129920"]
[BlackFideId "22737197"]
[WhiteElo "2448"]
[BlackElo "2035"]
[Result "0-1"]
[Round "04"]
[TimeControl "180+2"]
[Date "2023.03.28"]
[WhiteClock "0:00:48"]
[BlackClock "0:00:34"]

1. e4 {[%clk 0:02:59]}  e6 {[%clk 0:02:59]} 2. d4 {[%clk 0:02:59]}  d5 {[%clk 0:03:00]} 3. Nd2 {[%clk 0:03:00]}  Nc6 {[%clk 0:02:59]} 4. Ngf3 {[%clk 0:02:59]}  Nf6 {[%clk 0:02:59]} 5. e5 {[%clk 0:02:57]}  Nd7 {[%clk 0:02:59]} 6. Be2 {[%clk 0:02:51]}  f6 {[%clk 0:02:59]} 7. exf6 {[%clk 0:02:51]}  Qxf6 {[%clk 0:03:00]} 8. Nf1 {[%clk 0:02:52]}  Bd6 {[%clk 0:02:55]} 9. Ne3 {[%clk 0:02:52]}  O-O {[%clk 0:02:51]} 10. O-O {[%clk 0:02:52]}  Qg6 {[%clk 0:02:49]} 11. h3 {[%clk 0:02:27]}  Kh8 {[%clk 0:02:41]} 12. c4 {[%clk 0:02:06]}  Nf6 {[%clk 0:01:50]} 13. c5 {[%clk 0:02:01]}  Be7 {[%clk 0:01:46]} 14. Bd2 {[%clk 0:01:32]}  Ne4 {[%clk 0:01:44]} 15. b4 {[%clk 0:01:26]}  e5 {[%clk 0:01:23]} 16. Nxe5 {[%clk 0:01:10]}  Nxe5 {[%clk 0:01:19]} 17. dxe5 {[%clk 0:01:10]}  Bxh3 {[%clk 0:01:18]} 18. Bh5 {[%clk 0:01:03]}  Qg5 {[%clk 0:01:02]} 19. f4 {[%clk 0:01:02]}  Rxf4 {[%clk 0:00:40]} 20. Rxf4 {[%clk 0:00:56]}  Qxf4 {[%clk 0:00:40]} 21. gxh3 {[%clk 0:00:47]}  Qf2+ {[%clk 0:00:33]} 22. Kh1 {[%clk 0:00:48]}  Ng3# {[%clk 0:00:34]} 0-1


[Site "https://www.chess.com"]

[Event "Titled Tuesday Blitz March 28 Late 2023"]
[White "Bullen, Alex"]
[Black "Liu, Casper"]
[WhiteFideId "1801627"]
[BlackFideId "1454153"]
[WhiteElo "2088"]
[BlackElo "2221"]
[Result "1/2-1/2"]
[Round "04"]
[TimeControl "180+2"]
[Date "2023.03.28"]
[WhiteClock "0:00:19"]
[BlackClock "0:01:32"]

1. d4 {[%clk 0:02:54]}  Nc6 {[%clk 0:02:57]} 2. Nf3 {[%clk 0:02:54]}  g6 {[%clk 0:02:55]} 3. e4 {[%clk 0:02:53]}  Bg7 {[%clk 0:02:55]} 4. Be3 {[%clk 0:02:52]}  d5 {[%clk 0:02:56]} 5. e5 {[%clk 0:02:49]}  Bg4 {[%clk 0:02:56]} 6. h3 {[%clk 0:02:47]}  Bxf3 {[%clk 0:02:56]} 7. Qxf3 {[%clk 0:02:48]}  f6 {[%clk 0:02:57]} 8. exf6 {[%clk 0:02:43]}  Nxf6 {[%clk 0:02:56]} 9. Bb5 {[%clk 0:02:39]}  O-O {[%clk 0:02:56]} 10. Bxc6 {[%clk 0:02:35]}  bxc6 {[%clk 0:02:57]} 11. Qe2 {[%clk 0:02:30]}  Ne4 {[%clk 0:02:53]} 12. Nd2 {[%clk 0:02:25]}  e5 {[%clk 0:02:51]} 13. Nxe4 {[%clk 0:02:18]}  dxe4 {[%clk 0:02:48]} 14. Rd1 {[%clk 0:02:00]}  exd4 {[%clk 0:02:47]} 15. Qc4+ {[%clk 0:01:54]}  Qd5 {[%clk 0:02:46]} 16. Qxd5+ {[%clk 0:01:51]}  cxd5 {[%clk 0:02:47]} 17. Bxd4 {[%clk 0:01:52]}  c6 {[%clk 0:02:45]} 18. O-O {[%clk 0:01:42]}  a5 {[%clk 0:02:28]} 19. c4 {[%clk 0:01:33]}  dxc4 {[%clk 0:02:15]} 20. Bxg7 {[%clk 0:01:23]}  Kxg7 {[%clk 0:02:16]} 21. Rfe1 {[%clk 0:01:10]}  Rab8 {[%clk 0:02:12]} 22. Rd2 {[%clk 0:00:50]}  Rfd8 {[%clk 0:01:46]} 23. Rxd8 {[%clk 0:00:44]}  Rxd8 {[%clk 0:01:47]} 24. Rxe4 {[%clk 0:00:44]}  Rd1+ {[%clk 0:01:47]} 25. Kh2 {[%clk 0:00:44]}  Rd2 {[%clk 0:01:47]} 26. Rxc4 {[%clk 0:00:44]}  Rxf2 {[%clk 0:01:46]} 27. Ra4 {[%clk 0:00:20]}  Rf5 {[%clk 0:01:45]} 28. Kg3 {[%clk 0:00:20]}  Kf6 {[%clk 0:01:44]} 29. Rc4 {[%clk 0:00:19]}  Rg5+ {[%clk 0:01:41]} 30. Kf2 {[%clk 0:00:18]}  c5 {[%clk 0:01:38]} 31. Ra4 {[%clk 0:00:18]}  Rf5+ {[%clk 0:01:39]} 32. Kg3 {[%clk 0:00:17]}  Rg5+ {[%clk 0:01:38]} 33. Kf3 {[%clk 0:00:18]}  Rf5+ {[%clk 0:01:39]} 34. Ke2 {[%clk 0:00:18]}  Re5+ {[%clk 0:01:39]} 35. Kf3 {[%clk 0:00:18]}  Rf5+ {[%clk 0:01:39]} 36. Ke2 {[%clk 0:00:19]}  Re5+ {[%clk 0:01:39]} 37. Kf3 {[%clk 0:00:19]}  Rf5+ {[%clk 0:01:32]} 1/2-1/2


[Site "https://www.chess.com"]

[Event "Titled Tuesday Blitz March 28 Late 2023"]
[White "Li, Eric"]
[Black "Becerra, Juan David"]
[WhiteFideId "30939941"]
[BlackFideId "4404998"]
[WhiteElo "2262"]
[BlackElo "2282"]
[Result "1-0"]
[Round "04"]
[TimeControl "180+2"]
[Date "2023.03.28"]
[WhiteClock "0:00:39"]
[BlackClock "0:01:59"]

1. d4 {[%clk 0:03:00]}  d5 {[%clk 0:02:59]} 2. c4 {[%clk 0:03:01]}  e6 {[%clk 0:02:59]} 3. Nc3 {[%clk 0:02:58]}  c6 {[%clk 0:03:00]} 4. Nf3 {[%clk 0:02:52]}  f5 {[%clk 0:02:58]} 5. g3 {[%clk 0:02:51]}  Nf6 {[%clk 0:02:55]} 6. Bg2 {[%clk 0:02:51]}  Be7 {[%clk 0:02:54]} 7. O-O {[%clk 0:02:46]}  O-O {[%clk 0:02:54]} 8. b3 {[%clk 0:02:46]}  Nbd7 {[%clk 0:02:53]} 9. Qc2 {[%clk 0:02:34]}  a5 {[%clk 0:02:50]} 10. Bf4 {[%clk 0:02:16]}  h6 {[%clk 0:02:46]} 11. h4 {[%clk 0:02:05]}  Ne4 {[%clk 0:02:44]} 12. Rfd1 {[%clk 0:02:02]}  g5 {[%clk 0:02:44]} 13. hxg5 {[%clk 0:02:02]}  hxg5 {[%clk 0:02:44]} 14. Be5 {[%clk 0:01:30]}  g4 {[%clk 0:02:42]} 15. Ne1 {[%clk 0:01:08]}  Nxe5 {[%clk 0:02:42]} 16. dxe5 {[%clk 0:01:08]}  Nxc3 {[%clk 0:02:41]} 17. Qxc3 {[%clk 0:01:08]}  Qe8 {[%clk 0:02:39]} 18. Nd3 {[%clk 0:01:08]}  Bd7 {[%clk 0:02:34]} 19. Nf4 {[%clk 0:01:07]}  Rf7 {[%clk 0:02:34]} 20. e3 {[%clk 0:01:04]}  Rh7 {[%clk 0:02:33]} 21. a3 {[%clk 0:01:01]}  Qf8 {[%clk 0:02:31]} 22. b4 {[%clk 0:01:00]}  axb4 {[%clk 0:02:29]} 23. axb4 {[%clk 0:01:00]}  Bxb4 {[%clk 0:02:30]} 24. Qb3 {[%clk 0:00:53]}  Rb8 {[%clk 0:02:27]} 25. cxd5 {[%clk 0:00:49]}  cxd5 {[%clk 0:02:28]} 26. Rab1 {[%clk 0:00:43]}  Bc5 {[%clk 0:02:22]} 27. Bxd5 {[%clk 0:00:43]}  exd5 {[%clk 0:02:16]} 28. Qxd5+ {[%clk 0:00:42]}  Kh8 {[%clk 0:02:11]} 29. Ng6+ {[%clk 0:00:42]}  Kg7 {[%clk 0:02:06]} 30. Nxf8 {[%clk 0:00:42]}  Bc6 {[%clk 0:02:07]} 31. Ne6+ {[%clk 0:00:40]}  Kg8 {[%clk 0:01:59]} 32. Qxc6 {[%clk 0:00:39]} 1-0


[Site "https://www.chess.com"]

[Event "Titled Tuesday Blitz March 28 Late 2023"]
[White "Adel, Sara"]
[Black "Fernandez, Maria Florencia"]
[WhiteFideId "10616764"]
[BlackFideId "116459"]
[WhiteElo "1982"]
[BlackElo "2155"]
[Result "0-1"]
[Round "04"]
[TimeControl "180+2"]
[Date "2023.03.28"]
[WhiteClock "0:00:40"]
[BlackClock "0:00:22"]

1. e4 {[%clk 0:03:00]}  c5 {[%clk 0:02:57]} 2. Nc3 {[%clk 0:03:00]}  Nc6 {[%clk 0:02:56]} 3. f4 {[%clk 0:03:00]}  g6 {[%clk 0:02:55]} 4. Nf3 {[%clk 0:03:00]}  Bg7 {[%clk 0:02:55]} 5. Bc4 {[%clk 0:03:01]}  e6 {[%clk 0:02:56]} 6. O-O {[%clk 0:03:01]}  Nge7 {[%clk 0:02:56]} 7. Qe1 {[%clk 0:03:01]}  O-O {[%clk 0:02:54]} 8. d3 {[%clk 0:03:02]}  d5 {[%clk 0:02:55]} 9. Bb3 {[%clk 0:03:02]}  a6 {[%clk 0:02:53]} 10. a4 {[%clk 0:03:01]}  Nd4 {[%clk 0:02:44]} 11. Nxd4 {[%clk 0:03:01]}  cxd4 {[%clk 0:02:42]} 12. Ne2 {[%clk 0:03:01]}  dxe4 {[%clk 0:02:42]} 13. dxe4 {[%clk 0:03:02]}  d3 {[%clk 0:02:33]} 14. cxd3 {[%clk 0:03:01]}  Qxd3 {[%clk 0:02:32]} 15. Nc3 {[%clk 0:03:01]}  Nc6 {[%clk 0:02:11]} 16. Rf3 {[%clk 0:03:00]}  Qd4+ {[%clk 0:02:02]} 17. Be3 {[%clk 0:03:00]}  Qb4 {[%clk 0:02:02]} 18. Qd1 {[%clk 0:02:41]}  Rd8 {[%clk 0:01:52]} 19. Qc2 {[%clk 0:02:41]}  Nd4 {[%clk 0:01:50]} 20. Bxd4 {[%clk 0:02:39]}  Bxd4+ {[%clk 0:01:33]} 21. Kh1 {[%clk 0:02:39]}  b6 {[%clk 0:01:30]} 22. f5 {[%clk 0:02:39]}  exf5 {[%clk 0:01:15]} 23. Nd5 {[%clk 0:02:31]}  Qc5 {[%clk 0:01:00]} 24. Rc1 {[%clk 0:01:58]}  Qxc2 {[%clk 0:00:42]} 25. Rxc2 {[%clk 0:01:58]}  Be6 {[%clk 0:00:37]} 26. Ne7+ {[%clk 0:01:30]}  Kf8 {[%clk 0:00:37]} 27. exf5 {[%clk 0:01:25]}  Bxb3 {[%clk 0:00:34]} 28. Rc7 {[%clk 0:01:00]}  Be5 {[%clk 0:00:26]} 29. Nxg6+ {[%clk 0:00:43]}  hxg6 {[%clk 0:00:25]} 30. Rc1 {[%clk 0:00:40]}  Rd1+ {[%clk 0:00:22]} 31. Rxd1 {[%clk 0:00:40]}  Bxd1 {[%clk 0:00:23]} 32. fxg6 {[%clk 0:00:40]}  Bxf3 {[%clk 0:00:22]} 0-1


[Site "https://www.chess.com"]

[Event "Titled Tuesday Blitz March 28 Late 2023"]
[White "Toma, Katarzyna"]
[Black "Hoffmann, Asa"]
[WhiteFideId "1119907"]
[BlackFideId "2001470"]
[WhiteElo "2149"]
[BlackElo "2117"]
[Result "0-1"]
[Round "04"]
[TimeControl "180+2"]
[Date "2023.03.28"]
[WhiteClock "0:00:03"]
[BlackClock "0:01:42"]

1. e4 {[%clk 0:03:00]}  d6 {[%clk 0:02:59]} 2. d4 {[%clk 0:02:59]}  Nf6 {[%clk 0:02:55]} 3. Nc3 {[%clk 0:02:54]}  c6 {[%clk 0:02:55]} 4. Bc4 {[%clk 0:02:50]}  d5 {[%clk 0:02:55]} 5. exd5 {[%clk 0:02:47]}  cxd5 {[%clk 0:02:55]} 6. Bd3 {[%clk 0:02:47]}  Nc6 {[%clk 0:02:55]} 7. Nge2 {[%clk 0:02:38]}  Bg4 {[%clk 0:02:52]} 8. f3 {[%clk 0:02:37]}  Bh5 {[%clk 0:02:51]} 9. O-O {[%clk 0:02:35]}  e6 {[%clk 0:02:51]} 10. Qe1 {[%clk 0:02:33]}  Bd6 {[%clk 0:02:46]} 11. Nf4 {[%clk 0:02:28]}  Nxd4 {[%clk 0:02:31]} 12. Nxh5 {[%clk 0:02:14]}  Nxh5 {[%clk 0:02:30]} 13. Nb5 {[%clk 0:01:18]}  Nxb5 {[%clk 0:02:25]} 14. Bxb5+ {[%clk 0:01:18]}  Kf8 {[%clk 0:02:25]} 15. Bd3 {[%clk 0:01:04]}  Bf4 {[%clk 0:02:15]} 16. g3 {[%clk 0:00:59]}  Bxc1 {[%clk 0:02:14]} 17. Rxc1 {[%clk 0:00:53]}  Nf6 {[%clk 0:02:11]} 18. f4 {[%clk 0:00:38]}  Qd6 {[%clk 0:02:05]} 19. c4 {[%clk 0:00:29]}  h5 {[%clk 0:02:03]} 20. c5 {[%clk 0:00:24]}  Qc7 {[%clk 0:01:59]} 21. Qb4 {[%clk 0:00:20]}  Kg8 {[%clk 0:01:56]} 22. Rce1 {[%clk 0:00:14]}  h4 {[%clk 0:01:54]} 23. Re5 {[%clk 0:00:12]}  g6 {[%clk 0:01:48]} 24. Rg5 {[%clk 0:00:10]}  Rc8 {[%clk 0:01:44]} 25. Qd4 {[%clk 0:00:08]}  Qxc5 {[%clk 0:01:42]} 26. Qxc5 {[%clk 0:00:03]}  Rxc5 {[%clk 0:01:42]} 0-1


[Site "https://www.chess.com"]

[Event "Titled Tuesday Blitz March 28 Late 2023"]
[White "Molenda, Marcin"]
[Black "Djordjevic, Dejan N"]
[WhiteFideId "1173065"]
[BlackFideId "913316"]
[WhiteElo "2286"]
[BlackElo "2261"]
[Result "0-1"]
[Round "04"]
[TimeControl "180+2"]
[Date "2023.03.28"]
[WhiteClock "0:00:35"]
[BlackClock "0:00:05"]

1. Nf3 {[%clk 0:03:00]}  Nf6 {[%clk 0:02:56]} 2. g3 {[%clk 0:02:59]}  g6 {[%clk 0:02:55]} 3. Bg2 {[%clk 0:02:59]}  Bg7 {[%clk 0:02:55]} 4. O-O {[%clk 0:03:00]}  O-O {[%clk 0:02:55]} 5. c4 {[%clk 0:02:58]}  d6 {[%clk 0:02:56]} 6. Nc3 {[%clk 0:02:58]}  Nc6 {[%clk 0:02:56]} 7. b3 {[%clk 0:02:57]}  e5 {[%clk 0:02:52]} 8. Bb2 {[%clk 0:02:57]}  h6 {[%clk 0:02:51]} 9. d3 {[%clk 0:02:57]}  a6 {[%clk 0:02:50]} 10. a3 {[%clk 0:02:57]}  Bd7 {[%clk 0:02:51]} 11. b4 {[%clk 0:02:57]}  Qc8 {[%clk 0:02:51]} 12. Re1 {[%clk 0:02:56]}  Nh7 {[%clk 0:02:46]} 13. Nd5 {[%clk 0:02:56]}  Qd8 {[%clk 0:02:42]} 14. d4 {[%clk 0:02:50]}  e4 {[%clk 0:02:39]} 15. Nh4 {[%clk 0:02:50]}  g5 {[%clk 0:02:36]} 16. Bxe4 {[%clk 0:02:41]}  gxh4 {[%clk 0:02:21]} 17. Kh1 {[%clk 0:02:37]}  hxg3 {[%clk 0:02:20]} 18. Rg1 {[%clk 0:02:34]}  Ng5 {[%clk 0:02:20]} 19. Bc2 {[%clk 0:02:31]}  gxf2 {[%clk 0:02:19]} 20. Rg3 {[%clk 0:02:27]}  f5 {[%clk 0:02:06]} 21. Nf4 {[%clk 0:02:19]}  Kh7 {[%clk 0:01:53]} 22. e3 {[%clk 0:01:59]}  Rf7 {[%clk 0:01:42]} 23. Qe2 {[%clk 0:01:56]}  Ne4 {[%clk 0:01:40]} 24. Bxe4 {[%clk 0:01:54]}  fxe4 {[%clk 0:01:40]} 25. Qxf2 {[%clk 0:01:53]}  Qf8 {[%clk 0:01:23]} 26. Rag1 {[%clk 0:01:48]}  Re8 {[%clk 0:01:15]} 27. Qg2 {[%clk 0:01:43]}  Bf5 {[%clk 0:01:14]} 28. Nh5 {[%clk 0:01:39]}  Bh8 {[%clk 0:01:11]} 29. Rg6 {[%clk 0:01:34]}  Ne7 {[%clk 0:00:55]} 30. Rg3 {[%clk 0:01:28]}  d5 {[%clk 0:00:49]} 31. c5 {[%clk 0:01:21]}  Ng8 {[%clk 0:00:44]} 32. Bc3 {[%clk 0:01:16]}  Nf6 {[%clk 0:00:44]} 33. Nf4 {[%clk 0:01:16]}  Rg7 {[%clk 0:00:33]} 34. Be1 {[%clk 0:01:13]}  Rxg3 {[%clk 0:00:31]} 35. Bxg3 {[%clk 0:01:09]}  Bg4 {[%clk 0:00:31]} 36. Qf2 {[%clk 0:01:00]}  Bf3+ {[%clk 0:00:29]} 37. Ng2 {[%clk 0:01:00]}  Ng4 {[%clk 0:00:29]} 38. Qe1 {[%clk 0:01:01]}  Bf6 {[%clk 0:00:24]} 39. h3 {[%clk 0:00:58]}  Qg7 {[%clk 0:00:18]} 40. hxg4 {[%clk 0:00:58]}  Qxg4 {[%clk 0:00:18]} 41. Bxc7 {[%clk 0:00:56]}  Rg8 {[%clk 0:00:17]} 42. Qf2 {[%clk 0:00:55]}  Bh4 {[%clk 0:00:15]} 43. Qa2 {[%clk 0:00:50]}  Qh3+ {[%clk 0:00:11]} 44. Bh2 {[%clk 0:00:50]}  Be1 {[%clk 0:00:05]} 45. a4 {[%clk 0:00:35]}  Bg3 {[%clk 0:00:05]} 0-1


[Site "https://www.chess.com"]

[Event "Titled Tuesday Blitz March 28 Late 2023"]
[White "Benevides Demasi, Joao Otavio"]
[Black "Ozdemir, Serhan Berat"]
[WhiteFideId "30916224"]
[BlackFideId "6374611"]
[WhiteElo "2118"]
[BlackElo "2015"]
[Result "0-1"]
[Round "04"]
[TimeControl "180+2"]
[Date "2023.03.28"]
[WhiteClock "0:00:13"]
[BlackClock "0:00:12"]

1. d3 {[%clk 0:03:00]}  Nf6 {[%clk 0:02:59]} 2. g3 {[%clk 0:03:01]}  d5 {[%clk 0:02:55]} 3. Bg2 {[%clk 0:03:01]}  e5 {[%clk 0:02:50]} 4. Nf3 {[%clk 0:03:02]}  Nc6 {[%clk 0:02:48]} 5. O-O {[%clk 0:03:02]}  Be7 {[%clk 0:02:37]} 6. c4 {[%clk 0:03:02]}  O-O {[%clk 0:02:36]} 7. Nc3 {[%clk 0:03:02]}  d4 {[%clk 0:02:25]} 8. Na4 {[%clk 0:03:02]}  Bf5 {[%clk 0:02:14]} 9. c5 {[%clk 0:02:56]}  Qd7 {[%clk 0:02:02]} 10. Re1 {[%clk 0:02:56]}  Rfe8 {[%clk 0:01:58]} 11. b4 {[%clk 0:02:55]}  a6 {[%clk 0:01:51]} 12. Rb1 {[%clk 0:02:44]}  Bh3 {[%clk 0:01:41]} 13. Bh1 {[%clk 0:02:44]}  Be6 {[%clk 0:01:36]} 14. a3 {[%clk 0:02:42]}  Bd5 {[%clk 0:01:27]} 15. Nb2 {[%clk 0:02:09]}  e4 {[%clk 0:01:19]} 16. Ng5 {[%clk 0:02:08]}  e3 {[%clk 0:01:12]} 17. fxe3 {[%clk 0:01:42]}  Bxh1 {[%clk 0:01:11]} 18. Kxh1 {[%clk 0:01:42]}  Ng4 {[%clk 0:01:11]} 19. Nh3 {[%clk 0:01:20]}  dxe3 {[%clk 0:00:47]} 20. Rf1 {[%clk 0:01:21]}  Qd5+ {[%clk 0:00:44]} 21. Kg1 {[%clk 0:01:18]}  Qh5 {[%clk 0:00:43]} 22. Kg2 {[%clk 0:01:16]}  Bf6 {[%clk 0:00:29]} 23. Nc4 {[%clk 0:01:11]}  Rad8 {[%clk 0:00:27]} 24. Rf3 {[%clk 0:00:49]}  Nd4 {[%clk 0:00:23]} 25. Rxe3 {[%clk 0:00:31]}  Qxh3+ {[%clk 0:00:16]} 26. Kxh3 {[%clk 0:00:27]}  Nf2+ {[%clk 0:00:17]} 27. Kg2 {[%clk 0:00:27]}  Nxd1 {[%clk 0:00:17]} 28. Rxe8+ {[%clk 0:00:27]}  Rxe8 {[%clk 0:00:18]} 29. e3 {[%clk 0:00:20]}  Nc2 {[%clk 0:00:12]} 30. e4 {[%clk 0:00:19]}  Bd4 {[%clk 0:00:08]} 31. Bf4 {[%clk 0:00:16]}  Nde3+ {[%clk 0:00:08]} 32. Nxe3 {[%clk 0:00:16]}  Nxe3+ {[%clk 0:00:06]} 33. Kf3 {[%clk 0:00:16]}  Nc2 {[%clk 0:00:07]} 34. a4 {[%clk 0:00:14]}  c6 {[%clk 0:00:06]} 35. b5 {[%clk 0:00:14]}  axb5 {[%clk 0:00:06]} 36. axb5 {[%clk 0:00:14]}  cxb5 {[%clk 0:00:06]} 37. Rxb5 {[%clk 0:00:14]}  Ne1+ {[%clk 0:00:05]} 38. Ke2 {[%clk 0:00:14]}  Ng2 {[%clk 0:00:03]} 39. Rxb7 {[%clk 0:00:13]}  Nxf4+ {[%clk 0:00:03]} 40. gxf4 {[%clk 0:00:14]}  Bxc5 {[%clk 0:00:04]} 41. Kf3 {[%clk 0:00:14]}  Bd4 {[%clk 0:00:03]} 42. Rb4 {[%clk 0:00:14]}  Bc5 {[%clk 0:00:04]} 43. Rc4 {[%clk 0:00:14]}  Be7 {[%clk 0:00:04]} 44. d4 {[%clk 0:00:14]}  g6 {[%clk 0:00:04]} 45. d5 {[%clk 0:00:14]}  Rd8 {[%clk 0:00:03]} 46. Ke3 {[%clk 0:00:14]}  Bh4 {[%clk 0:00:02]} 47. Kd4 {[%clk 0:00:14]}  Kg7 {[%clk 0:00:03]} 48. e5 {[%clk 0:00:14]}  Bf2+ {[%clk 0:00:03]} 49. Ke4 {[%clk 0:00:14]}  Bg1 {[%clk 0:00:02]} 50. d6 {[%clk 0:00:15]}  Ra8 {[%clk 0:00:02]} 51. Rc7 {[%clk 0:00:15]}  Bxh2 {[%clk 0:00:02]} 52. e6 {[%clk 0:00:14]}  Kf6 {[%clk 0:00:02]} 53. exf7 {[%clk 0:00:14]}  Kg7 {[%clk 0:00:02]} 54. f8=Q+ {[%clk 0:00:14]}  Kxf8 {[%clk 0:00:02]} 55. Rxh7 {[%clk 0:00:14]}  Kg8 {[%clk 0:00:03]} 56. Rc7 {[%clk 0:00:13]}  Ra4+ {[%clk 0:00:03]} 57. Kd5 {[%clk 0:00:13]}  Bxf4 {[%clk 0:00:02]} 58. Rc8+ {[%clk 0:00:13]}  Kf7 {[%clk 0:00:02]} 59. d7 {[%clk 0:00:14]}  Ra5+ {[%clk 0:00:02]} 60. Kc6 {[%clk 0:00:14]}  Bg5 {[%clk 0:00:03]} 61. d8=Q {[%clk 0:00:14]}  Bxd8 {[%clk 0:00:03]} 62. Rxd8 {[%clk 0:00:14]}  Re5 {[%clk 0:00:04]} 63. Rd7+ {[%clk 0:00:15]}  Kf6 {[%clk 0:00:04]} 64. Rd6+ {[%clk 0:00:15]}  Kf5 {[%clk 0:00:04]} 65. Kd7 {[%clk 0:00:15]}  g5 {[%clk 0:00:05]} 66. Rd1 {[%clk 0:00:14]}  g4 {[%clk 0:00:05]} 67. Kd6 {[%clk 0:00:15]}  Re2 {[%clk 0:00:05]} 68. Kd5 {[%clk 0:00:14]}  Kf4 {[%clk 0:00:05]} 69. Kd4 {[%clk 0:00:15]}  Re8 {[%clk 0:00:04]} 70. Rf1+ {[%clk 0:00:14]}  Kg3 {[%clk 0:00:05]} 71. Kd3 {[%clk 0:00:13]}  Kh3 {[%clk 0:00:04]} 72. Kd2 {[%clk 0:00:11]}  g3 {[%clk 0:00:05]} 73. Kd3 {[%clk 0:00:11]}  g2 {[%clk 0:00:05]} 74. Rf7 {[%clk 0:00:10]}  g1=Q {[%clk 0:00:04]} 75. Rh7+ {[%clk 0:00:10]}  Kg2 {[%clk 0:00:05]} 76. Rg7+ {[%clk 0:00:10]}  Kf1 {[%clk 0:00:06]} 77. Rxg1+ {[%clk 0:00:10]}  Kxg1 {[%clk 0:00:06]} 78. Kd4 {[%clk 0:00:11]}  Kf2 {[%clk 0:00:07]} 79. Kd5 {[%clk 0:00:11]}  Kf3 {[%clk 0:00:07]} 80. Kd4 {[%clk 0:00:12]}  Re4+ {[%clk 0:00:08]} 81. Kd5 {[%clk 0:00:12]}  Kf4 {[%clk 0:00:09]} 82. Kd6 {[%clk 0:00:12]}  Kf5 {[%clk 0:00:09]} 83. Kd5 {[%clk 0:00:12]}  Re5+ {[%clk 0:00:10]} 84. Kd4 {[%clk 0:00:13]}  Kf4 {[%clk 0:00:09]} 85. Kd3 {[%clk 0:00:13]}  Rd5+ {[%clk 0:00:09]} 86. Kc4 {[%clk 0:00:13]}  Ke4 {[%clk 0:00:10]} 87. Kc3 {[%clk 0:00:13]}  Rc5+ {[%clk 0:00:10]} 88. Kb4 {[%clk 0:00:13]}  Kd4 {[%clk 0:00:11]} 89. Kb3 {[%clk 0:00:13]}  Rb5+ {[%clk 0:00:12]} 90. Kc2 {[%clk 0:00:13]}  Rb4 {[%clk 0:00:12]} 91. Kd2 {[%clk 0:00:13]}  Rb2+ {[%clk 0:00:12]} 92. Ke1 {[%clk 0:00:13]}  Ke3 {[%clk 0:00:12]} 93. Kd1 {[%clk 0:00:14]}  Rd2+ {[%clk 0:00:12]} 94. Kc1 {[%clk 0:00:14]}  Kd3 {[%clk 0:00:13]} 95. Kb1 {[%clk 0:00:14]}  Kc3 {[%clk 0:00:12]} 96. Kc1 {[%clk 0:00:15]}  Rd5 {[%clk 0:00:12]} 97. Kb1 {[%clk 0:00:15]}  Rd4 {[%clk 0:00:13]} 98. Kc1 {[%clk 0:00:15]}  Rd8 {[%clk 0:00:10]} 99. Kb1 {[%clk 0:00:14]}  Rd1+ {[%clk 0:00:11]} 100. Ka2 {[%clk 0:00:14]}  Rc1 {[%clk 0:00:11]} 101. Ka3 {[%clk 0:00:13]}  Ra1# {[%clk 0:00:12]} 0-1


[Site "https://www.chess.com"]

[Event "Titled Tuesday Blitz March 28 Late 2023"]
[White "Matute Escobar, Roxanny"]
[Black "Gonzalez, Francisco Silva"]
[WhiteFideId "3926028"]
[BlackFideId "1512285"]
[WhiteElo "1732"]
[BlackElo "2074"]
[Result "0-1"]
[Round "04"]
[TimeControl "180+2"]
[Date "2023.03.28"]
[WhiteClock "0:00:41"]
[BlackClock "0:01:36"]

1. e4 {[%clk 0:02:59]}  e5 {[%clk 0:02:59]} 2. Nf3 {[%clk 0:02:59]}  Nc6 {[%clk 0:02:59]} 3. Bc4 {[%clk 0:02:59]}  Bc5 {[%clk 0:02:53]} 4. b4 {[%clk 0:02:59]}  Bb6 {[%clk 0:02:53]} 5. c3 {[%clk 0:02:53]}  d6 {[%clk 0:02:52]} 6. a4 {[%clk 0:02:53]}  a6 {[%clk 0:02:52]} 7. d3 {[%clk 0:02:51]}  Nf6 {[%clk 0:02:52]} 8. Nbd2 {[%clk 0:02:51]}  Ne7 {[%clk 0:02:51]} 9. Bb3 {[%clk 0:02:49]}  Ng6 {[%clk 0:02:51]} 10. O-O {[%clk 0:02:48]}  Ba7 {[%clk 0:02:50]} 11. d4 {[%clk 0:02:34]}  O-O {[%clk 0:02:46]} 12. h3 {[%clk 0:02:28]}  h6 {[%clk 0:02:45]} 13. Re1 {[%clk 0:02:28]}  Re8 {[%clk 0:02:43]} 14. dxe5 {[%clk 0:02:20]}  Nxe5 {[%clk 0:02:43]} 15. Nxe5 {[%clk 0:02:00]}  Rxe5 {[%clk 0:02:42]} 16. Qf3 {[%clk 0:01:51]}  Qe7 {[%clk 0:02:40]} 17. Bc2 {[%clk 0:01:18]}  Bf5 {[%clk 0:02:35]} 18. Bb2 {[%clk 0:01:10]}  d5 {[%clk 0:02:20]} 19. c4 {[%clk 0:01:10]}  dxe4 {[%clk 0:02:19]} 20. Qe2 {[%clk 0:01:03]}  e3 {[%clk 0:02:18]} 21. c5 {[%clk 0:00:52]}  Bxc2 {[%clk 0:02:12]} 22. Bxe5 {[%clk 0:00:51]}  Qxe5 {[%clk 0:01:58]} 23. Nf3 {[%clk 0:00:51]}  Qe4 {[%clk 0:01:55]} 24. fxe3 {[%clk 0:00:50]}  Bd3 {[%clk 0:01:53]} 25. Qf2 {[%clk 0:00:49]}  a5 {[%clk 0:01:50]} 26. Rad1 {[%clk 0:00:43]}  axb4 {[%clk 0:01:49]} 27. Qg3 {[%clk 0:00:41]}  Bxc5 {[%clk 0:01:39]} 28. Ne5 {[%clk 0:00:41]}  Bd6 {[%clk 0:01:36]} 0-1


[Site "https://www.chess.com"]